fUSD/lending_fUSD_20240412
["ID","MTS","AMOUNT","RATE_DAILY","PERIOD"]
[322331777,1712956277599,-496.627602,0.00046849,14]
[322331778,1712956277608,-500.0,0.00046849,31]
[322331779,1712956277617,-500.0,0.00046849,31]
[322331780,1712956277628,-500.0,0.00046849,31]
[322331781,1712956277638,-500.0,0.00046849,31]
[322331782,1712956277647,-500.0,0.00046849,31]
[322331783,1712956277657,-500.0,0.00046849,31]
[322331784,1712956277669,-500.0,0.00046849,31]
[322331785,1712956277678,-500.0,0.00046849,31]
[322331786,1712956277687,-500.0,0.00046849,31]
[322331787,1712956277696,-500.0,0.00046849,31]
[322331788,1712956277706,-500.0,0.00046849,31]
[322331789,1712956277715,-696.14,0.00046849,31]
[322331790,1712956277724,-500.0,0.00046849,31]
[322331791,1712956277733,-500.0,0.00046849,31]
[322331792,1712956277742,-500.0,0.00046849,31]
[322331793,1712956277751,-500.0,0.00046849,31]
[322331794,1712956277760,-500.0,0.00046849,31]
[322331795,1712956277770,-500.0,0.00046849,31]
[322331796,1712956277779,-151.0,0.00046849,14]
[322331797,1712956277788,-681.42,0.00046849,31]
[322331798,1712956277799,-151.0,0.00046849,14]
[322331799,1712956277808,-500.0,0.00046849,31]
[322331800,1712956277817,-500.0,0.00046849,31]
[322331801,1712956277827,-500.0,0.00046849,31]
[322331802,1712956277836,-500.0,0.00046849,31]
[322331803,1712956277845,-500.0,0.00046849,31]
[322331804,1712956277855,-500.0,0.00046849,31]
[322331805,1712956277864,-500.0,0.00046849,31]
[322331806,1712956277873,-500.0,0.00046849,31]
[322331807,1712956277883,-500.0,0.00046849,31]
[322331808,1712956277892,-500.0,0.00046849,31]
[322331809,1712956277901,-900.567219,0.00046849,14]
[322331810,1712956277910,-500.0,0.00046849,31]
[322331811,1712956277919,-500.0,0.00046849,31]
[322331812,1712956277928,-210.070062,0.00046849,14]
[322331813,1712956277938,-500.0,0.00046849,31]
[322331814,1712956277947,-900.567219,0.00046849,14]
[322331815,1712956277956,-643.83,0.00046849,31]
[322331816,1712956277965,-151.0,0.00046849,14]
[322331817,1712956277974,-500.0,0.00046849,31]
[322331818,1712956277983,-500.0,0.00046849,31]
[322331819,1712956277993,-500.0,0.00046849,31]
[322331820,1712956278002,-152.98,0.00046849,31]
[322331821,1712956278011,-1817.19,0.00046849,31]
[322331822,1712956278020,-500.0,0.00046849,31]
[322331823,1712956278029,-500.0,0.00046849,31]
[322331824,1712956278039,-500.0,0.00046849,31]
[322331825,1712956278048,-500.0,0.00046849,31]
[322331826,1712956278057,-540.67217668,0.00046849,31]
[322331827,1712956278066,-500.0,0.00046849,31]
[322331828,1712956278076,-519.91,0.00046849,31]
[322331829,1712956278085,-500.0,0.00046849,31]
[322331830,1712956278094,-500.0,0.00046849,31]
[322331831,1712956278105,-500.0,0.00046849,31]
[322331832,1712956278114,-500.0,0.00046849,31]
[322331833,1712956278124,-500.0,0.00046849,31]
[322331834,1712956278134,-500.0,0.00046849,31]
[322331835,1712956278144,-500.0,0.00046849,31]
[322331836,1712956278154,-500.0,0.00046849,31]
[322331837,1712956278164,-500.0,0.00046849,31]
[322331838,1712956278176,-500.0,0.00046849,31]
[322331839,1712956278185,-500.0,0.00046849,31]
[322331840,1712956278194,-500.0,0.00046849,31]
[322331841,1712956278204,-514.39904237,0.00046849,31]
[322331842,1712956278215,-500.0,0.00046849,31]
[322331843,1712956278225,-500.0,0.00046849,31]
[322331844,1712956278234,-665.13,0.00046849,31]
[322331845,1712956278243,-500.0,0.00046849,31]
[322331846,1712956278252,-562.52,0.00046849,31]
[322331847,1712956278261,-336.527194,0.00046849,14]
[322331848,1712956278270,-500.0,0.00046849,31]
[322331849,1712956278279,-500.0,0.00046849,31]
[322331850,1712956278289,-500.0,0.00046849,31]
[322331851,1712956278299,-500.0,0.00046849,31]
[322331852,1712956278308,-500.0,0.00046849,31]
[322331853,1712956278321,-336.527194,0.00046849,14]
[322331854,1712956278330,-500.0,0.00046849,31]
[322331855,1712956278340,-500.0,0.00046849,31]
[322331856,1712956278349,-500.0,0.00046849,31]
[322331857,1712956278360,-500.0,0.00046849,31]
[322331858,1712956278371,-500.0,0.00046849,31]
[322331859,1712956278380,-500.0,0.00046849,31]
[322331860,1712956278390,-500.0,0.00046849,31]
[322331861,1712956278399,-500.0,0.00046849,31]
[322331862,1712956278409,-8352.31,0.00046849,31]
[322331863,1712956278419,-500.0,0.00046849,31]
[322331864,1712956278429,-500.0,0.00046849,31]
[322331865,1712956278438,-500.0,0.00046849,31]
[322331866,1712956278448,-511.72663001,0.00046849,31]
[322331867,1712956278457,-500.0,0.00046849,31]
[322331868,1712956278467,-649.27,0.00046849,31]
[322331869,1712956278476,-500.0,0.00046849,31]
[322331870,1712956278485,-791.6,0.00046849,31]
[322331871,1712956278495,-500.0,0.00046849,31]
[322331872,1712956278505,-500.0,0.00046849,31]
[322331873,1712956278514,-500.0,0.00046849,31]
[322331874,1712956278524,-563.50652499,0.00046849,31]
[322331875,1712956278534,-151.0,0.00046849,14]
[322331876,1712956278543,-500.0,0.00046849,31]
[322331877,1712956278553,-500.0,0.00046849,31]
[322331878,1712956278562,-500.0,0.00046849,31]
[322331879,1712956278572,-500.0,0.00046849,31]
[322331880,1712956278581,-511.51,0.00046849,7]
[322331881,1712956278591,-1945.07,0.00046849,31]
[322331882,1712956278601,-500.0,0.00046849,31]
[322331883,1712956278611,-684.24,0.00046849,31]
[322331884,1712956278622,-253.937882,0.00046849,14]
[322331885,1712956278631,-500.0,0.00046849,31]
[322331886,1712956278641,-500.0,0.00046849,31]
[322331887,1712956278651,-500.0,0.00046849,31]
[322331888,1712956278660,-500.0,0.00046849,31]
[322331889,1712956278670,-500.0,0.00046849,31]
[322331890,1712956278680,-500.0,0.00046849,31]
[322331891,1712956278690,-500.0,0.00046849,31]
[322331892,1712956278699,-674.93,0.00046849,31]
[322331893,1712956278710,-500.0,0.00046849,31]
[322331894,1712956278719,-500.0,0.00046849,31]
[322331895,1712956278729,-500.0,0.00046849,31]
[322331896,1712956278739,-500.0,0.00046849,31]
[322331897,1712956278749,-500.0,0.00046849,30]
[322331898,1712956278758,-500.0,0.00046849,31]
[322331899,1712956278767,-500.0,0.00046849,31]
[322331900,1712956278777,-500.0,0.00046849,31]
[322331901,1712956278786,-500.0,0.00046849,31]
[322331902,1712956278799,-1181.86,0.00046849,31]
[322331903,1712956278941,-500.0,0.00046849,31]
[322331904,1712956278955,-500.0,0.00046849,31]
[322331905,1712956278964,-500.0,0.00046849,31]
[322331906,1712956278974,-500.0,0.00046849,31]
[322331907,1712956278983,-500.0,0.00046849,31]
[322331908,1712956278993,-500.0,0.00046849,31]
[322331909,1712956279002,-500.0,0.00046849,31]
[322331910,1712956279011,-151.0,0.00046849,14]
[322331911,1712956279021,-189.299703,0.00046849,14]
[322331912,1712956279030,-500.0,0.00046849,31]
[322331913,1712956279040,-500.0,0.00046849,31]
[322331914,1712956279053,-1000.0,0.00046849,30]
[322331915,1712956279063,-696.23,0.00046849,31]
[322331916,1712956279073,-189.299703,0.00046849,14]
[322331917,1712956279082,-500.0,0.00046849,31]
[322331918,1712956279091,-500.0,0.00046849,31]
[322331919,1712956279101,-500.0,0.00046849,31]
[322331920,1712956279110,-500.0,0.00046849,31]
[322331921,1712956279119,-500.0,0.00046849,31]
[322331922,1712956279128,-500.0,0.00046849,31]
[322331923,1712956279137,-1356.46,0.00046849,31]
[322331924,1712956279146,-2478.45,0.00046849,31]
[322331925,1712956279155,-500.0,0.00046849,31]
[322331926,1712956279164,-500.0,0.00046849,31]
[322331927,1712956279173,-500.0,0.00046849,31]
[322331928,1712956279183,-500.0,0.00046849,31]
[322331929,1712956279193,-500.0,0.00046849,31]
[322331930,1712956279202,-500.0,0.00046849,31]
[322331931,1712956279211,-500.0,0.00046849,31]
[322331932,1712956279221,-500.0,0.00046849,31]
[322331933,1712956279230,-500.0,0.00046849,31]
[322331934,1712956279240,-500.0,0.00046849,31]
[322331935,1712956279249,-500.0,0.00046849,31]
[322331936,1712956279259,-500.0,0.00046849,31]
[322331937,1712956279269,-500.0,0.00046849,31]
[322331938,1712956279278,-500.0,0.00046849,31]
[322331939,1712956279288,-500.0,0.00046849,31]
[322331940,1712956279303,-527.76,0.00046849,31]
[322331941,1712956279316,-500.0,0.00046849,31]
[322331942,1712956279325,-500.0,0.00046849,31]
[322331943,1712956279335,-500.0,0.00046849,31]
[322331944,1712956279345,-4040.59,0.00046849,31]
[322331945,1712956279355,-500.0,0.00046849,31]
[322331946,1712956279365,-806.53,0.00046849,31]
[322331947,1712956279374,-500.0,0.00046849,31]
[322331948,1712956279384,-1501.77,0.00046849,31]
[322331949,1712956279393,-500.0,0.00046849,31]
[322331950,1712956279405,-500.0,0.00046849,31]
[322331951,1712956279415,-500.0,0.00046849,31]
[322331952,1712956279424,-315.0,0.00046849,14]
[322331953,1712956279434,-500.0,0.00046849,31]
[322331954,1712956279443,-500.0,0.00046849,31]
[322331955,1712956279452,-500.0,0.00046849,31]
[322331956,1712956279462,-500.0,0.00046849,31]
[322331957,1712956279472,-315.0,0.00046849,14]
[322331958,1712956279482,-151.0,0.00046849,14]
[322331959,1712956279491,-500.0,0.00046849,31]
[322331960,1712956279500,-500.0,0.00046849,31]
[322331961,1712956279510,-500.0,0.00046849,31]
[322331962,1712956279519,-500.0,0.00046849,31]
[322331963,1712956279528,-500.0,0.00046849,31]
[322331964,1712956279537,-500.0,0.00046849,31]
[322331965,1712956279549,-500.0,0.00046849,31]
[322331966,1712956279559,-500.0,0.00046849,31]
[322331967,1712956279568,-500.0,0.00046849,31]
[322331968,1712956279578,-500.0,0.00046849,31]
[322331969,1712956279588,-582.04,0.00046849,31]
[322331970,1712956279598,-500.0,0.00046849,31]
[322331971,1712956279607,-575.83,0.00046849,31]
[322331972,1712956279617,-500.0,0.00046849,31]
[322331973,1712956279627,-475.20554214,0.00046849,31]
[322331974,1712956279636,-500.0,0.00046849,31]
[322331975,1712956279646,-500.0,0.00046849,31]
[322331976,1712956279655,-500.0,0.00046849,31]
[322331977,1712956279664,-500.0,0.00046849,31]
[322331978,1712956279674,-500.0,0.00046849,31]
[322331979,1712956279684,-500.0,0.00046849,31]
[322331980,1712956279693,-500.0,0.00046849,31]
[322331981,1712956279703,-500.0,0.00046849,31]
[322331982,1712956279712,-500.0,0.00046849,31]
[322331983,1712956279722,-500.0,0.00046849,31]
[322331984,1712956279732,-188.782729,0.00046849,14]
[322331985,1712956279742,-500.0,0.00046849,31]
[322331986,1712956279751,-500.0,0.00046849,31]
[322331987,1712956279760,-500.0,0.00046849,31]
[322331988,1712956279769,-306.80186623,0.00046849,31]
[322331989,1712956279778,-500.0,0.00046849,31]
[322331990,1712956279787,-624.07,0.00046849,31]
[322331991,1712956279798,-583.16,0.00046849,31]
[322331992,1712956279807,-500.0,0.00046849,31]
[322331993,1712956279816,-188.782729,0.00046849,14]
[322331994,1712956279826,-500.0,0.00046849,31]
[322331995,1712956279837,-500.0,0.00046849,31]
[322331996,1712956279847,-500.0,0.00046849,31]
[322331997,1712956279856,-1903.42,0.00046849,31]
[322331998,1712956279865,-500.0,0.00046849,31]
[322331999,1712956279874,-500.0,0.00046849,31]
[322332000,1712956279883,-151.0,0.00046849,14]
[322332001,1712956279892,-500.0,0.00046849,31]
[322332002,1712956279901,-534.13654282,0.00046849,31]
[322332003,1712956279912,-500.0,0.00046849,31]
[322332004,1712956279921,-500.0,0.00046849,31]
[322332005,1712956279931,-500.0,0.00046849,31]
[322332006,1712956279940,-500.0,0.00046849,31]
[322332007,1712956279949,-500.0,0.00046849,31]
[322332008,1712956279959,-805.36,0.00046849,31]
[322332009,1712956279968,-500.0,0.00046849,31]
[322332010,1712956279978,-500.0,0.00046849,31]
[322332011,1712956279988,-500.0,0.00046849,31]
[322332012,1712956279997,-500.0,0.00046849,31]
[322332013,1712956280007,-1458.26,0.00046849,31]
[322332014,1712956280016,-500.0,0.00046849,31]
[322332015,1712956280026,-500.0,0.00046849,31]
[322332016,1712956280036,-500.0,0.00046849,31]
[322332017,1712956280047,-570.80241689,0.00046849,31]
[322332018,1712956280057,-500.0,0.00046849,31]
[322332019,1712956280066,-1111.117458,0.00046849,14]
[322332020,1712956280076,-500.0,0.00046849,31]
[322332021,1712956280086,-521.67,0.00046849,31]
[322332022,1712956280096,-500.0,0.00046849,31]
[322332023,1712956280105,-1111.117458,0.00046849,14]
[322332024,1712956280115,-500.0,0.00046849,31]
[322332025,1712956280125,-500.0,0.00046849,31]
[322332026,1712956280135,-935.26,0.00046849,31]
[322332027,1712956280144,-1535.17,0.00046849,31]
[322332028,1712956280154,-500.0,0.00046849,31]
[322332029,1712956280163,-541.82,0.00046849,31]
[322332030,1712956280173,-774.55,0.00046849,31]
[322332031,1712956280183,-500.0,0.00046849,31]
[322332032,1712956280192,-500.0,0.00046849,31]
[322332033,1712956280201,-500.0,0.00046849,31]
[322332034,1712956280211,-543.39808393,0.00046849,31]
[322332035,1712956280220,-500.0,0.00046849,31]
[322332036,1712956280229,-20341.84,0.00046849,31]
[322332037,1712956280239,-500.0,0.00046849,31]
[322332038,1712956280248,-500.0,0.00046849,31]
[322332039,1712956280257,-500.0,0.00046849,31]
[322332040,1712956280266,-500.0,0.00046849,31]
[322332041,1712956280275,-500.0,0.00046849,31]
[322332042,1712956280284,-164.010989,0.00046849,14]
[322332043,1712956280295,-500.0,0.00046849,31]
[322332044,1712956280305,-1246.74,0.00046849,31]
[322332045,1712956280316,-500.0,0.00046849,31]
[322332046,1712956280327,-500.0,0.00046849,31]
[322332047,1712956280336,-652.08,0.00046849,31]
[322332048,1712956280346,-1608.86,0.00046849,31]
[322332049,1712956280356,-500.0,0.00046849,31]
[322332050,1712956280366,-500.0,0.00046849,31]
[322332051,1712956280375,-469.363151,0.00046849,14]
[322332052,1712956280385,-500.0,0.00046849,31]
[322332053,1712956280394,-874.86,0.00046849,31]
[322332054,1712956280404,-500.0,0.00046849,31]
[322332055,1712956280413,-500.0,0.00046849,31]
[322332056,1712956280422,-174.022076,0.00046849,14]
[322332057,1712956280432,-469.363151,0.00046849,14]
[322332058,1712956280441,-500.0,0.00046849,31]
[322332059,1712956280451,-500.0,0.00046849,31]
[322332060,1712956280460,-500.0,0.00046849,31]
[322332061,1712956280470,-500.0,0.00046849,31]
[322332062,1712956280479,-1419.72,0.00046849,31]
[322332063,1712956280488,-500.0,0.00046849,31]
[322332064,1712956280498,-174.022076,0.00046849,14]
[322332065,1712956280508,-500.0,0.00046849,31]
[322332066,1712956280517,-500.0,0.00046849,31]
[322332067,1712956280526,-3711.37,0.00046849,31]
[322332068,1712956280536,-3646.35,0.00046849,31]
[322332069,1712956280546,-500.0,0.00046849,31]
[322332070,1712956280556,-500.0,0.00046849,31]
[322332071,1712956280565,-500.0,0.00046849,31]
[322332072,1712956280575,-644.18,0.00046849,31]
[322332073,1712956280584,-500.0,0.00046849,31]
[322332074,1712956280593,-500.0,0.00046849,31]
[322332075,1712956280602,-500.0,0.00046849,31]
[322332076,1712956280612,-500.0,0.00046849,31]
[322332077,1712956280621,-500.0,0.00046849,31]
[322332078,1712956280630,-500.0,0.00046849,31]
[322332079,1712956280639,-500.0,0.00046849,31]
[322332080,1712956280648,-500.0,0.00046849,31]
[322332081,1712956280657,-501.4046385,0.00046849,31]
[322332082,1712956280667,-1230.23,0.00046849,31]
[322332083,1712956280676,-500.0,0.00046849,31]
[322332084,1712956280686,-500.0,0.00046849,31]
[322332085,1712956280695,-529.81,0.00046849,31]
[322332086,1712956280705,-349.71166,0.00046849,14]
[322332087,1712956280714,-500.0,0.00046849,31]
[322332088,1712956280723,-500.0,0.00046849,31]
[322332089,1712956280733,-500.0,0.00046849,31]
[322332090,1712956280742,-500.0,0.00046849,31]
[322332091,1712956280752,-151.0,0.00046849,14]
[322332092,1712956280762,-500.0,0.00046849,31]
[322332093,1712956280772,-1773.86,0.00046849,31]
[322332094,1712956280781,-349.71166,0.00046849,14]
[322332095,1712956280790,-732.33,0.00046849,31]
[322332096,1712956280802,-2118.05,0.00046849,31]
[322332097,1712956280812,-354.803703,0.00046849,14]
[322332098,1712956280821,-645.62,0.00046849,31]
[322332099,1712956280831,-500.0,0.00046849,31]
[322332100,1712956280841,-500.0,0.00046849,31]
[322332101,1712956280850,-500.0,0.00046849,31]
[322332102,1712956280860,-546.03,0.00046849,31]
[322332103,1712956280869,-354.803703,0.00046849,14]
[322332104,1712956280879,-151.0,0.00046849,7]
[322332105,1712956280888,-1198.72,0.00046849,31]
[322332106,1712956280897,-500.0,0.00046849,31]
[322332107,1712956280907,-500.0,0.00046849,31]
[322332108,1712956280916,-500.0,0.00046849,31]
[322332109,1712956280925,-500.0,0.00046849,31]
[322332110,1712956280934,-500.0,0.00046849,31]
[322332111,1712956280944,-2977.13,0.00046849,31]
[322332112,1712956280953,-5708.25,0.00046849,31]
[322332113,1712956280962,-500.0,0.00046849,31]
[322332114,1712956280971,-746.8,0.00046849,31]
[322332115,1712956280981,-500.0,0.00046849,31]
[322332116,1712956281120,-500.0,0.00046849,31]
[322332117,1712956281131,-664.07,0.00046849,31]
[322332118,1712956281140,-500.0,0.00046849,31]
[322332119,1712956281150,-500.0,0.00046849,31]
[322332120,1712956281159,-500.0,0.00046849,31]
[322332121,1712956281168,-500.0,0.00046849,31]
[322332122,1712956281177,-1521.01,0.00046849,31]
[322332123,1712956281186,-500.0,0.00046849,31]
[322332124,1712956281196,-500.0,0.00046849,31]
[322332125,1712956281205,-2320.0,0.00046849,31]
[322332126,1712956281214,-500.0,0.00046849,31]
[322332127,1712956281223,-706.82,0.00046849,31]
[322332128,1712956281232,-3679.13,0.00046849,31]
[322332129,1712956281242,-500.0,0.00046849,31]
[322332130,1712956281252,-500.0,0.00046849,31]
[322332131,1712956281261,-500.0,0.00046849,31]
[322332132,1712956281271,-15731.26,0.00046849,31]
[322332133,1712956281280,-500.0,0.00046849,31]
[322332134,1712956281289,-1058.86,0.00046849,31]
[322332135,1712956281301,-521.02,0.00046849,31]
[322332136,1712956281314,-1703.15,0.00046849,31]
[322332137,1712956281322,-500.0,0.00046849,31]
[322332138,1712956281331,-500.0,0.00046849,31]
[322332139,1712956281341,-500.0,0.00046849,31]
[322332140,1712956281350,-500.0,0.00046849,31]
[322332141,1712956281360,-1166.54,0.00046849,31]
[322332142,1712956281369,-500.0,0.00046849,31]
[322332143,1712956281379,-2094.0,0.00046849,31]
[322332144,1712956281389,-500.0,0.00046849,30]
[322332145,1712956281398,-500.0,0.00046849,31]
[322332146,1712956281409,-151.0,0.00046849,14]
[322332147,1712956281418,-500.0,0.00046849,31]
[322332148,1712956281427,-2142.41,0.00046849,31]
[322332149,1712956281438,-985.95,0.00046849,31]
[322332150,1712956281448,-500.0,0.00046849,31]
[322332151,1712956281457,-500.0,0.00046849,31]
[322332152,1712956281467,-500.0,0.00046849,31]
[322332153,1712956281477,-500.0,0.00046849,31]
[322332154,1712956281486,-937.11,0.00046849,31]
[322332155,1712956281495,-151.0,0.00046849,14]
[322332156,1712956281504,-500.0,0.00046849,31]
[322332157,1712956281514,-500.0,0.00046849,31]
[322332158,1712956281523,-691.8,0.00046849,31]
[322332159,1712956281533,-591.24,0.00046849,31]
[322332160,1712956281545,-2120.81,0.00046849,31]
[322332161,1712956281554,-500.0,0.00046849,31]
[322332162,1712956281563,-500.0,0.00046849,31]
[322332163,1712956281572,-500.0,0.00046849,31]
[322332164,1712956281582,-534.15,0.00046849,31]
[322332165,1712956281592,-500.0,0.00046849,31]
[322332166,1712956281601,-564.70118061,0.00046849,31]
[322332167,1712956281611,-512.64,0.00046849,31]
[322332168,1712956281620,-500.0,0.00046849,31]
[322332169,1712956281629,-812.89,0.00046849,31]
[322332170,1712956281639,-231.39452693,0.00046849,31]
[322332171,1712956281649,-500.0,0.00046849,31]
[322332172,1712956281658,-2419.16,0.00046849,31]
[322332173,1712956281668,-4130.71,0.00046849,31]
[322332174,1712956281678,-500.0,0.00046849,31]
[322332175,1712956281688,-3070.85,0.00046849,31]
[322332176,1712956281697,-1198.069053,0.00046849,14]
[322332177,1712956281707,-151.0,0.00046849,14]
[322332178,1712956281717,-500.0,0.00046849,31]
[322332179,1712956281727,-500.0,0.00046849,31]
[322332180,1712956281736,-500.0,0.00046849,31]
[322332181,1712956281746,-756.68,0.00046849,31]
[322332182,1712956281755,-1198.069053,0.00046849,14]
[322332183,1712956281764,-501.77,0.00046849,31]
[322332184,1712956281774,-679.55,0.00046849,31]
[322332185,1712956281783,-500.0,0.00046849,31]
[322332186,1712956281794,-500.0,0.00046849,31]
[322332187,1712956281803,-500.0,0.00046849,31]
[322332188,1712956281812,-642.02,0.00046849,31]
[322332189,1712956281822,-500.0,0.00046849,31]
[322332190,1712956281831,-500.0,0.00046849,31]
[322332191,1712956281841,-190.6817,0.00046849,14]
[322332192,1712956281851,-1182.46,0.00046849,31]
[322332193,1712956281860,-500.0,0.00046849,31]
[322332194,1712956281870,-8113.01,0.00046849,31]
[322332195,1712956281879,-718.33,0.00046849,31]
[322332196,1712956281889,-906.01,0.00046849,31]
[322332197,1712956281898,-500.0,0.00046849,31]
[322332198,1712956281908,-500.0,0.00046849,31]
[322332199,1712956281917,-151.0,0.00046849,14]
[322332200,1712956281926,-190.6817,0.00046849,14]
[322332201,1712956281937,-524.77904808,0.00046849,31]
[322332202,1712956281946,-500.0,0.00046849,31]
[322332203,1712956281956,-552.54,0.00046849,31]
[322332204,1712956281965,-500.0,0.00046849,31]
[322332205,1712956281974,-433.43039445,0.00046849,31]
[322332206,1712956281984,-1691.75,0.00046849,31]
[322332207,1712956281993,-226.96003,0.00046849,14]
[322332208,1712956282002,-500.0,0.00046849,31]
[322332209,1712956282012,-796.65,0.00046849,31]
[322332210,1712956282021,-500.0,0.00046849,31]
[322332211,1712956282031,-291.271005,0.00046849,14]
[322332212,1712956282044,-500.0,0.00046849,31]
[322332213,1712956282053,-500.0,0.00046849,31]
[322332214,1712956282063,-291.271005,0.00046849,14]
[322332215,1712956282073,-500.0,0.00046849,31]
[322332216,1712956282082,-151.0,0.00046849,14]
[322332217,1712956282093,-1931.38,0.00046849,31]
[322332218,1712956282102,-1038.17,0.00046849,31]
[322332219,1712956282112,-500.0,0.00046849,31]
[322332220,1712956282122,-567.25667759,0.00046849,31]
[322332221,1712956282131,-1909.8,0.00046849,31]
[322332222,1712956282140,-500.0,0.00046849,31]
[322332223,1712956282149,-500.0,0.00046849,31]
[322332224,1712956282159,-500.0,0.00046849,31]
[322332225,1712956282168,-1375.31,0.00046849,31]
[322332226,1712956282177,-508.7897443,0.00046849,31]
[322332227,1712956282187,-500.0,0.00046849,31]
[322332228,1712956282197,-500.0,0.00046849,31]
[322332229,1712956282207,-500.0,0.00046849,31]
[322332230,1712956282216,-3128.79,0.00046849,31]
[322332231,1712956282225,-562.55021739,0.00046849,31]
[322332232,1712956282235,-276.037624,0.00046849,14]
[322332233,1712956282245,-2327.1,0.00046849,31]
[322332234,1712956282254,-500.0,0.00046849,31]
[322332235,1712956282263,-500.0,0.00046849,31]
[322332236,1712956282272,-522.35261249,0.00046849,31]
[322332237,1712956282281,-18182.37,0.00046849,31]
[322332238,1712956282290,-276.037624,0.00046849,14]
[322332239,1712956282303,-500.0,0.00046849,31]
[322332240,1712956282314,-500.0,0.00046849,31]
[322332241,1712956282325,-365.33422,0.00046849,14]
[322332242,1712956282335,-6035.47,0.00046849,31]
[322332243,1712956282345,-2577.26,0.00046849,31]
[322332244,1712956282354,-500.0,0.00046849,31]
[322332245,1712956282365,-500.0,0.00046849,7]
[322332246,1712956282373,-511.71077705,0.00046849,31]
[322332247,1712956282382,-151.0,0.00046849,14]
[322332248,1712956282394,-4212.38,0.00046849,31]
[322332249,1712956282404,-1143.56,0.00046849,31]
[322332250,1712956282414,-365.33422,0.00046849,14]
[322332251,1712956282424,-500.0,0.00046849,31]
[322332252,1712956282433,-500.0,0.00046849,31]
[322332253,1712956282442,-688.0,0.00046849,31]
[322332254,1712956282451,-709.5,0.00046849,31]
[322332255,1712956282460,-500.0,0.00046849,2]
[322332256,1712956282469,-500.0,0.00046849,31]
[322332257,1712956282479,-500.0,0.00046849,31]
[322332258,1712956282488,-500.0,0.00046849,31]
[322332259,1712956282497,-500.0,0.00046849,31]
[322332260,1712956282506,-500.0,0.00046849,31]
[322332261,1712956282515,-500.0,0.00046849,31]
[322332262,1712956282525,-1251.78,0.00046849,31]
[322332263,1712956282534,-500.0,0.00046849,31]
[322332264,1712956282546,-1227.56,0.00046849,31]
[322332265,1712956282554,-500.0,0.00046849,31]
[322332266,1712956282563,-500.0,0.00046849,31]
[322332267,1712956282572,-500.0,0.00046849,31]
[322332268,1712956282581,-579.98,0.00046849,31]
[322332269,1712956282590,-500.0,0.00046849,31]
[322332270,1712956282599,-962.14,0.00046849,31]
[322332271,1712956282609,-526.36,0.00046849,31]
[322332272,1712956282618,-500.0,0.00046849,31]
[322332273,1712956282627,-500.0,0.00046849,31]
[322332274,1712956282636,-500.0,0.00046849,31]
[322332275,1712956282645,-500.0,0.00046849,31]
[322332276,1712956282654,-500.0,0.00046849,31]